fUSD/lending_fUSD_20251130
["ID","MTS","AMOUNT","RATE_DAILY","PERIOD"]
[395185691,1764526254997,-151.0,0.00020859,2]
[395185692,1764526255006,-151.0,0.00020859,2]
[395185693,1764526255016,-151.0,0.00020859,2]
[395185694,1764526255026,-151.0,0.00020859,2]
[395185695,1764526255037,-151.0,0.00020859,2]
[395185696,1764526255051,-151.0,0.00020859,2]
[395185697,1764526255060,-157.931868,0.00020859,2]
[395185698,1764526255073,-151.0,0.00020859,2]
[395185699,1764526255082,-151.0,0.00020859,2]
[395185700,1764526255092,-151.0,0.00020859,2]
[395185701,1764526255101,-151.0,0.00020859,2]
[395185702,1764526255110,-151.0,0.00020859,2]
[395185703,1764526255120,-274.117277,0.00020859,2]
[395185704,1764526255129,-151.0,0.00020859,2]
[395185705,1764526255138,-151.043719,0.00020859,2]
[395185706,1764526255147,-1564.77,0.00020908,2]
[395185707,1764526255156,-1321.0,0.00020953,2]
[395185708,1764526255166,-1603.0,0.00020953,2]
[395185709,1764526255175,-640.0,0.00020953,2]
[395185710,1764526255184,-1258.0,0.00020953,2]
[395185711,1764526255193,-2718.0,0.00020953,2]
[395185712,1764526255203,-6506.0,0.00020953,2]
[395185713,1764526255212,-1097.0,0.00020972,2]
[395185714,1764526255221,-1750.71197899,0.00021,2]
[395185715,1764526255230,-350.0,0.00021,2]
[395185716,1764526255239,-4383.64927,0.00021,2]
[395185717,1764526255249,-200.0,0.00021,2]
[395185718,1764526255258,-4000.0,0.00021008,2]
[395185719,1764526255268,-1300.0,0.00021053,2]
[395185720,1764526255276,-3000.0,0.00021063,2]
[395185721,1764526255285,-4609.0,0.00021064,2]
[395185722,1764526255295,-7971.29,0.00021068,2]
[395185723,1764526255304,-500.0,0.00021079,2]
[395185724,1764526255314,-4000.0,0.0002108,2]
[395185725,1764526255323,-500.0,0.00021148,2]
[395185726,1764526255332,-1600.0,0.00021157,2]
[395185727,1764526255342,-287.61899177,0.00021334,2]
[395185728,1764526255351,-151.0,0.00021334,2]
[395185729,1764526255361,-334.5472959,0.00021334,2]
[395185730,1764526255672,-359.76179104,0.00021334,2]
[395185731,1764526255694,-171.79,0.00021335,2]
[395185732,1764526255704,-500.0,0.00021369,2]
[395185733,1764526255714,-151.0,0.0002137,2]
[395185734,1764526255723,-184.86097967,0.0002137,2]
[395185735,1764526255732,-500.0,0.0002139,2]
[395185736,1764526255741,-500.0,0.00021443,2]
[395185737,1764526255750,-1341.98116508,0.0002146,2]
[395185738,1764526255760,-5455.3,0.00021499,2]
[395185739,1764526255775,-1136.52,0.00021499,2]
[395185740,1764526255784,-57213.72804296,0.000215,2]
[395185741,1764526255794,-220.77224672,0.000215,2]
[395185742,1764526255803,-500.0,0.00021509,2]
[395185743,1764526255812,-500.0,0.00021535,2]
[395185744,1764526255822,-1300.0,0.00021595,2]
[395185745,1764526255831,-3000.0,0.00021611,2]
[395185746,1764526255841,-4000.0,0.00021639,2]
[395185747,1764526255850,-4000.0,0.00021683,2]
[395185748,1764526255860,-11142.0228269,0.0002172,2]
[395185749,1764526255869,-1300.0,0.0002173,2]
[395185750,1764526255879,-610.0,0.00021775,2]
[395185751,1764526255889,-3442.0,0.00021775,2]
[395185752,1764526255899,-500.0,0.00021822,2]
[395185753,1764526255909,-5000.0,0.00021918,2]
[395185754,1764526255918,-151.0,0.00021918,2]
[395185755,1764526255928,-151.0,0.00021918,2]
[395185756,1764526255937,-151.0,0.00021918,2]
[395185757,1764526255948,-150.0,0.00021918,2]
[395185758,1764526255958,-150.0,0.00021918,2]
[395185759,1764526255968,-150.0,0.00021918,2]
[395185760,1764526255978,-151.0,0.00021997,2]
[395185761,1764526255987,-500.0,0.00021999,2]
[395185762,1764526255996,-666.0,0.00021999,2]
[395185763,1764526256007,-666.0,0.00021999,2]
[395185764,1764526256016,-666.0,0.00021999,2]
[395185765,1764526256025,-24125.77250893,0.00022,2]
[395185766,1764526256036,-29062.3091778,0.00022,4]
[395185767,1764526256047,-4121.04886237,0.00022,2]
[395185768,1764526256057,-767.85563141,0.00022,7]
[395185769,1764526256066,-160.97,0.00022,2]
[395185770,1764526256075,-254.59771835,0.00022,2]
[395185771,1764526256085,-1000.0,0.00022,2]
[395185772,1764526256095,-241.66388594,0.00022,2]
[395185773,1764526256104,-2917.55,0.00022,7]
[395185774,1764526256113,-176.52,0.00022,2]
[395185775,1764526256125,-4000.0,0.00022013,2]
[395185776,1764526256134,-1097.0,0.00022021,2]
[395185777,1764526256143,-150.0,0.00022055,2]
[395185778,1764526256152,-157.41715578,0.00022055,2]
[395185779,1764526256162,-491.45905431,0.000221,2]
[395185780,1764526256171,-500.0,0.00022102,2]
[395185781,1764526256181,-238.80423263,0.0002211,2]
[395185782,1764526256190,-3000.0,0.00022159,2]
[395185783,1764526256199,-5455.3,0.00022189,2]
[395185784,1764526256208,-1136.52,0.00022189,2]
[395185785,1764526256218,-203.45756783,0.00022192,2]
[395185786,1764526256228,-1300.0,0.00022247,2]
[395185787,1764526256238,-1300.0,0.00022273,2]
[395185788,1764526256247,-4000.0,0.00022366,2]
[395185789,1764526256256,-261.63,0.00022393,2]
[395185790,1764526256266,-1300.0,0.00022411,2]
[395185791,1764526256275,-1300.0,0.00022436,2]
[395185792,1764526256285,-194.12420594,0.00022499,2]
[395185793,1764526256296,-666.0,0.00022499,2]
[395185794,1764526256305,-5455.3,0.00022499,2]
[395185795,1764526256314,-35292.78827707,0.000225,2]
[395185796,1764526256324,-558.76,0.00022559,2]
[395185797,1764526256334,-636.06314622,0.00022588,2]
[395185798,1764526256343,-1613.0,0.00022666,2]
[395185799,1764526256353,-298.26089446,0.00022703,2]
[395185800,1764526256363,-151.0,0.00022703,2]
[395185801,1764526256372,-364.57677245,0.00022703,2]
[395185802,1764526256382,-278.54461871,0.00022703,2]
[395185803,1764526256391,-621.78829552,0.00022705,2]
[395185804,1764526256401,-3000.0,0.00022707,2]
[395185805,1764526256410,-347.6524,0.00022708,2]
[395185806,1764526256422,-519.92626802,0.0002271,2]
[395185807,1764526256432,-1300.0,0.00022806,2]
[395185808,1764526256441,-500.0,0.00022899,2]
[395185809,1764526256450,-19276.36869419,0.000229,2]
[395185810,1764526256459,-4000.0,0.00022912,2]
[395185811,1764526256469,-4000.0,0.00022925,2]
[395185812,1764526256479,-1300.0,0.00022938,2]
[395185813,1764526256489,-1001.49022851,0.00023,2]
[395185814,1764526256498,-400.0,0.00023,2]
[395185815,1764526256509,-4383.64927,0.00023,2]
[395185816,1764526256519,-1600.0,0.0002308,2]
[395185817,1764526256528,-2570.00261966,0.000231,2]
[395185818,1764526256537,-1097.0,0.00023122,2]
[395185819,1764526256547,-6453.0,0.0002317,2]
[395185820,1764526256556,-666.0,0.00023199,2]
[395185821,1764526256566,-51853.8705599,0.000232,2]
[395185822,1764526256575,-3000.0,0.00023255,2]
[395185823,1764526256585,-1136.52,0.00023287,2]
[395185824,1764526256594,-500.0,0.00023288,2]
[395185825,1764526256603,-500.0,0.00023288,2]
[395185826,1764526256615,-500.0,0.00023288,2]
[395185827,1764526256625,-500.0,0.00023288,2]
[395185828,1764526256635,-500.0,0.00023288,2]
[395185829,1764526256645,-500.0,0.00023288,2]
[395185830,1764526256656,-500.0,0.00023288,2]
[395185831,1764526256667,-500.0,0.00023288,2]
[395185832,1764526256677,-500.0,0.00023288,2]
[395185833,1764526256686,-269.73378234,0.00023288,2]
[395185834,1764526256697,-1400.0,0.00023303,7]
[395185835,1764526256706,-234.36046869,0.00023332,2]
[395185836,1764526256716,-500.0,0.00023369,2]
[395185837,1764526256725,-500.0,0.00023369,2]
[395185838,1764526256735,-500.0,0.00023369,2]
[395185839,1764526256744,-500.0,0.00023369,2]
[395185840,1764526256754,-524.40679433,0.00023369,2]
[395185841,1764526256763,-500.0,0.00023369,2]
[395185842,1764526256772,-173.88347713,0.00023369,2]
[395185843,1764526256782,-500.0,0.00023369,2]
[395185844,1764526256792,-648.97949028,0.00023369,2]
[395185845,1764526256802,-512.38673853,0.00023369,2]
[395185846,1764526256811,-500.0,0.00023369,2]
[395185847,1764526256821,-2917.55,0.000234,7]
[395185848,1764526256830,-534.2392541,0.00023441,2]
[395185849,1764526256839,-200.0,0.000235,2]
[395185850,1764526256848,-500.0,0.00023577,7]
[395185851,1764526256857,-600.0,0.00023577,7]
[395185852,1764526256868,-4000.0,0.00023598,2]
[395185853,1764526256878,-151.0,0.00023632,2]
[395185854,1764526256887,-3000.0,0.00023803,2]
[395185855,1764526256897,-347.95268734,0.00023847,2]
[395185856,1764526256906,-1300.0,0.00023916,2]
[395185857,1764526256916,-1321.0,0.00023953,2]
[395185858,1764526256925,-1603.0,0.00023953,2]
[395185859,1764526256934,-640.0,0.00023953,2]
[395185860,1764526256943,-1258.0,0.00023953,2]
[395185861,1764526256952,-2718.0,0.00023953,2]
[395185862,1764526256961,-6506.0,0.00023953,2]
[395185863,1764526256970,-51278.0,0.00023973,2]
[395185864,1764526256979,-5455.3,0.00023999,2]
[395185865,1764526256988,-1014.60456319,0.00024,2]
[395185866,1764526256997,-3600.0,0.00024,2]
[395185867,1764526257006,-878.51595379,0.00024,30]
[395185868,1764526257017,-16112.01050485,0.00024,2]
[395185869,1764526257026,-500.0,0.00024,2]
[395185870,1764526257036,-349.0,0.00024,2]
[395185871,1764526257049,-4000.0,0.00024001,2]
[395185872,1764526257059,-309.29654756,0.00024072,2]
[395185873,1764526257069,-151.0,0.00024072,2]
[395185874,1764526257078,-500.0,0.00024165,2]
[395185875,1764526257087,-4000.0,0.00024185,2]
[395185876,1764526257096,-419.16677837,0.0002421,2]
[395185877,1764526257106,-3673.03961673,0.0002421,2]
[395185878,1764526257116,-500.0,0.00024244,2]
[395185879,1764526257127,-1097.0,0.00024278,2]
[395185880,1764526257139,-1400.0,0.00024399,7]
[395185881,1764526257150,-2000.0,0.000244,2]
[395185882,1764526257159,-1300.0,0.00024416,2]
[395185883,1764526257168,-151.0,0.00024427,2]
[395185884,1764526257178,-1300.0,0.00024451,2]
[395185885,1764526257188,-297.60339957,0.00024477,2]
[395185886,1764526257198,-176.52,0.00024519,2]
[395185887,1764526257207,-4000.0,0.00024521,2]
[395185888,1764526257217,-500.0,0.00024547,2]
[395185889,1764526257226,-500.0,0.00024592,2]
[395185890,1764526257235,-1000.0,0.00024609,2]
[395185891,1764526257246,-500.0,0.00024631,2]
[395185892,1764526257255,-1000.0,0.0002464,2]
[395185893,1764526257264,-593.60890134,0.0002465,2]
[395185894,1764526257274,-166.4365239,0.0002465,2]
[395185895,1764526257283,-157.15604385,0.00024658,2]
[395185896,1764526257293,-1000.0,0.00024658,2]
[395185897,1764526257302,-287.53,0.00024658,2]
[395185898,1764526257311,-151.0,0.00024658,2]
[395185899,1764526257320,-297.95686623,0.00024658,7]
[395185900,1764526257330,-1300.0,0.0002466,2]
[395185901,1764526257339,-160.08034637,0.00024673,2]
[395185902,1764526257348,-600.0,0.00024673,7]
[395185903,1764526257357,-2917.55,0.000247,7]
[395185904,1764526257366,-1000.0,0.0002471,2]
[395185905,1764526257375,-4000.0,0.00024717,2]
[395185906,1764526257384,-4824.53906399,0.00024717,2]
[395185907,1764526257393,-701.25539044,0.0002477,2]
[395185908,1764526257403,-150.0,0.0002477,2]
[395185909,1764526257412,-610.0,0.00024775,2]
[395185910,1764526257422,-3442.0,0.00024775,2]
[395185911,1764526257431,-515.58811583,0.00024799,2]
[395185912,1764526257441,-219.97289193,0.00024799,2]
[395185913,1764526257450,-621.79084846,0.00024799,2]
[395185914,1764526257459,-500.0,0.00024799,2]
[395185915,1764526257469,-500.0,0.00024799,2]
[395185916,1764526257478,-500.0,0.00024799,2]
[395185917,1764526257488,-500.0,0.00024799,2]
[395185918,1764526257498,-500.0,0.00024799,2]
[395185919,1764526257507,-500.0,0.00024799,2]
[395185920,1764526257517,-1136.52,0.00024799,2]
[395185921,1764526257526,-1136.52,0.00024799,2]
[395185922,1764526257536,-427.55165138,0.000248,7]
[395185923,1764526257546,-427.55165138,0.000248,3]
[395185924,1764526257555,-151.0,0.000248,7]
[395185925,1764526257565,-299.786751,0.000248,7]
[395185926,1764526257574,-151.0,0.000248,7]
[395185927,1764526257584,-151.0,0.000248,7]
[395185928,1764526257593,-151.0,0.000248,7]
[395185929,1764526257603,-164.622248,0.000248,7]
[395185930,1764526257613,-372.504463,0.000248,7]
[395185931,1764526257623,-372.504463,0.000248,7]
[395185932,1764526257632,-372.504463,0.000248,7]
[395185933,1764526257643,-372.504463,0.000248,7]
[395185934,1764526257652,-151.0,0.000248,7]
[395185935,1764526257661,-151.0,0.000248,7]
[395185936,1764526257671,-151.0,0.000248,7]
[395185937,1764526257681,-151.0,0.000248,7]
[395185938,1764526257690,-151.0,0.000248,7]
[395185939,1764526257699,-200.69172,0.000248,7]
[395185940,1764526257709,-421.890401,0.000248,7]
[395185941,1764526257719,-421.890401,0.000248,7]
[395185942,1764526257729,-421.890401,0.000248,7]
[395185943,1764526257738,-421.890401,0.000248,7]
[395185944,1764526257748,-153.952662,0.000248,7]
[395185945,1764526257757,-151.0,0.000248,7]
[395185946,1764526257768,-151.0,0.000248,7]
[395185947,1764526257777,-151.0,0.000248,7]
[395185948,1764526257786,-222.8447,0.000248,7]
[395185949,1764526257796,-719.816437,0.000248,7]
[395185950,1764526257806,-719.816437,0.000248,7]
[395185951,1764526257815,-719.816437,0.000248,7]
[395185952,1764526257824,-719.816437,0.000248,7]
[395185953,1764526257835,-151.0,0.000248,7]
[395185954,1764526257844,-151.0,0.000248,7]
[395185955,1764526257855,-151.0,0.000248,7]
[395185956,1764526257868,-151.0,0.000248,7]
[395185957,1764526257877,-186.992889,0.000248,7]
[395185958,1764526257888,-502.657011,0.000248,7]
[395185959,1764526257898,-151.0,0.000248,7]
[395185960,1764526257907,-502.657011,0.000248,7]
[395185961,1764526257916,-502.657011,0.000248,7]
[395185962,1764526257926,-502.657011,0.000248,7]
[395185963,1764526257936,-247.319282,0.000248,7]
[395185964,1764526257946,-413.347242,0.000248,7]
[395185965,1764526257955,-247.319282,0.000248,7]
[395185966,1764526257965,-247.319282,0.000248,7]
[395185967,1764526257974,-413.347242,0.000248,7]
[395185968,1764526257983,-247.319282,0.000248,7]
[395185969,1764526257994,-413.347242,0.000248,7]
[395185970,1764526258004,-413.347242,0.000248,7]
[395185971,1764526258014,-151.0,0.000248,7]
[395185972,1764526258028,-151.0,0.000248,7]
[395185973,1764526258039,-151.0,0.000248,7]
[395185974,1764526258049,-151.0,0.000248,7]
[395185975,1764526258059,-526.680662,0.000248,7]
[395185976,1764526258068,-526.680662,0.000248,7]
[395185977,1764526258078,-526.680662,0.000248,7]
[395185978,1764526258087,-526.680662,0.000248,7]
[395185979,1764526258097,-213716.6062894,0.000248,3]
[395185980,1764526259022,-1380.0,0.000248,3]
[395185981,1764526259036,-7847.57915688,0.000248,3]
[395185982,1764526259052,-523.34287504,0.000248,3]
[395185983,1764526259064,-3388.14629249,0.000248,3]
[395185984,1764526259089,-2323.81658066,0.000248,3]
[395185985,1764526259103,-416.47500003,0.000248,3]
[395185986,1764526259118,-30552.56532435,0.000248,3]
[395185987,1764526259133,-274.038,0.000248,3]
[395185988,1764526259146,-4916.22261783,0.000248,3]
[395185989,1764526259159,-42856.13359171,0.000248,3]
[395185990,1764526259249,-375.09371456,0.000169,2]
[395185991,1764526259262,-151.0,0.00017,2]
[395185992,1764526259274,-151.0,0.00017,2]
[395185993,1764526259285,-151.0,0.00017227,2]
[395185994,1764526259296,-151.0,0.00017227,2]
[395185995,1764526259307,-151.0,0.00020859,2]
[395185996,1764526259318,-121.64030489,0.00020859,2]
[395185997,1764526259332,-29.35969511,0.00020859,2]
[395185998,1764526259344,-25522.97295761,0.000248,3]
[395185999,1764526259355,-151.0,0.000248,7]
[395186000,1764526259367,-663.777879,0.000248,7]
[395186001,1764526259377,-151.0,0.000248,7]
[395186002,1764526259389,-663.777879,0.000248,7]
[395186003,1764526259401,-663.777879,0.000248,7]
[395186004,1764526259412,-663.777879,0.000248,7]
[395186005,1764526259423,-151.0,0.000248,7]
[395186006,1764526259434,-151.0,0.000248,7]
[395186007,1764526259445,-151.0,0.000248,7]
[395186008,1764526259456,-171.392544,0.000248,7]
[395186009,1764526259469,-151.0,0.000248,7]
[395186010,1764526259479,-1828.868881,0.000248,7]
[395186011,1764526259492,-343.728469,0.000248,7]
[395186012,1764526259503,-1828.868881,0.000248,7]
[395186013,1764526259514,-343.728469,0.000248,7]
[395186014,1764526259524,-1828.868881,0.000248,7]
[395186015,1764526259536,-343.728469,0.000248,7]
[395186016,1764526259547,-1828.868881,0.000248,7]
[395186017,1764526259557,-343.728469,0.000248,7]
[395186018,1764526259568,-1052.506512,0.000248,7]
[395186019,1764526259579,-1052.506512,0.000248,7]
[395186020,1764526259590,-1052.506512,0.000248,7]
[395186021,1764526259601,-1052.506512,0.000248,7]
[395186022,1764526259613,-151.0,0.000248,7]
[395186023,1764526259624,-233.924191,0.000248,7]
[395186024,1764526259634,-151.0,0.000248,7]
[395186025,1764526259644,-151.0,0.000248,7]
[395186026,1764526259655,-151.0,0.000248,7]
[395186027,1764526259665,-221.945082,0.000248,7]
[395186028,1764526259676,-221.945082,0.000248,7]
[395186029,1764526259687,-221.945082,0.000248,7]
[395186030,1764526259698,-221.945082,0.000248,7]
[395186031,1764526259708,-209.092198,0.000248,7]
[395186032,1764526259718,-209.092198,0.000248,7]
[395186033,1764526259727,-209.092198,0.000248,7]
[395186034,1764526259738,-151.0,0.000248,7]
[395186035,1764526259749,-209.092198,0.000248,7]
[395186036,1764526259761,-151.0,0.000248,7]
[395186037,1764526259774,-151.0,0.000248,7]
[395186038,1764526259787,-598.944795,0.000248,7]
[395186039,1764526259799,-598.944795,0.000248,7]
[395186040,1764526259809,-598.944795,0.000248,7]
[395186041,1764526259819,-598.944795,0.000248,7]
[395186042,1764526259828,-151.0,0.000248,7]
[395186043,1764526259839,-151.0,0.000248,7]
[395186044,1764526259849,-151.0,0.000248,7]
[395186045,1764526259859,-151.0,0.000248,7]
[395186046,1764526259871,-151.0,0.000248,7]
[395186047,1764526259883,-224.564303,0.000248,7]
[395186048,1764526259895,-282.613665,0.000248,7]
[395186049,1764526259906,-151.0,0.000248,7]
[395186050,1764526259918,-151.0,0.000248,7]
[395186051,1764526259928,-151.0,0.000248,7]
[395186052,1764526259939,-151.0,0.000248,7]
[395186053,1764526259949,-151.0,0.000248,7]
[395186054,1764526259958,-151.0,0.000248,7]
[395186055,1764526259968,-151.0,0.000248,7]
[395186056,1764526259978,-151.0,0.000248,7]
[395186057,1764526259987,-151.0,0.000248,7]
[395186058,1764526259998,-1300.0,0.00024812,2]
[395186059,1764526260009,-2258.0,0.00024822,2]
[395186060,1764526260020,-157.68516844,0.00024902,2]
[395186061,1764526260031,-374.5,0.00024908,15]
[395186062,1764526260048,-497.09,0.00025,10]
[395186063,1764526260059,-2085.6996986,0.00025,2]
[395186064,1764526260070,-150.0,0.00025,2]
[395186065,1764526260080,-150.0,0.00025,2]
[395186066,1764526260091,-205.399,0.00025,2]
[395186067,1764526260102,-150.0,0.00025,2]
[395186068,1764526260112,-450.0,0.00025,2]
[395186069,1764526260123,-150.0,0.00025,2]
[395186070,1764526260133,-150.0,0.00025,2]
[395186071,1764526260143,-150.0,0.00025,2]
[395186072,1764526260153,-150.0,0.00025,2]
[395186073,1764526260164,-150.0,0.00025,2]
[395186074,1764526260174,-150.0,0.00025,2]
[395186075,1764526260184,-1300.0,0.00025004,7]
[395186076,1764526260194,-1425.99406562,0.00025079,7]
[395186077,1764526260204,-2000.0,0.00025095,2]
[395186078,1764526260215,-2000.0,0.00025095,2]
[395186079,1764526260225,-2000.0,0.00025095,2]
[395186080,1764526260235,-2000.0,0.00025095,2]
[395186081,1764526260246,-1113.8643,0.00025095,2]
[395186082,1764526260256,-2000.0,0.00025095,2]
[395186083,1764526260267,-1000.0,0.00025099,2]
[395186084,1764526260277,-1300.0,0.00025102,7]
[395186085,1764526260287,-1000.0,0.00025112,2]
[395186086,1764526260298,-1000.0,0.00025131,2]
[395186087,1764526260308,-500.0,0.00025135,2]
[395186088,1764526260319,-500.0,0.00025135,2]
[395186089,1764526260329,-500.0,0.00025135,2]
[395186090,1764526260339,-558.76,0.00025135,2]
[395186091,1764526260350,-556.83585957,0.00025135,2]
[395186092,1764526260360,-150.0,0.00025142,2]
[395186093,1764526260370,-400.0,0.0002517,2]
[395186094,1764526260380,-396.0,0.000252,2]
[395186095,1764526260390,-151.0,0.00025221,2]
[395186096,1764526260401,-500.0,0.00025289,7]
[395186097,1764526260411,-288.08,0.000253,14]
[395186098,1764526260421,-4000.0,0.0002538,7]
[395186099,1764526260431,-320.74051982,0.00025441,2]
[395186100,1764526260442,-173.6301566,0.00025441,2]
[395186101,1764526260452,-644.79446246,0.00025444,2]
[395186102,1764526260463,-9035.0,0.00025487,2]
[395186103,1764526260473,-1400.0,0.00025495,7]
[395186104,1764526260484,-427.55165138,0.000255,3]
[395186105,1764526260495,-1300.0,0.00025501,7]
[395186106,1764526260505,-4000.0,0.00025543,7]
[395186107,1764526260516,-1300.0,0.00025578,7]
[395186108,1764526260527,-522.79968162,0.00025598,2]
[395186109,1764526260537,-500.0,0.00025598,2]
[395186110,1764526260547,-500.0,0.00025598,2]
[395186111,1764526260558,-500.0,0.00025598,2]
[395186112,1764526260568,-171.79,0.00025602,2]
[395186113,1764526261436,-702.51,0.00025611,2]
[395186114,1764526261466,-702.51,0.00025611,2]
[395186115,1764526261500,-702.51,0.00025611,2]
[395186116,1764526261518,-702.51,0.00025611,2]
[395186117,1764526261529,-1300.0,0.00025735,7]
[395186118,1764526261538,-500.0,0.00025769,7]
[395186119,1764526261547,-600.0,0.00025769,7]
[395186120,1764526261557,-4000.0,0.00025841,7]
[395186121,1764526261567,-500.0,0.0002591,7]
[395186122,1764526261575,-500.0,0.00025997,7]
[395186123,1764526261585,-2130.0,0.00026,120]
[395186124,1764526261594,-3028.78888518,0.00026,10]
[395186125,1764526261603,-150.0,0.00026,120]
[395186126,1764526261612,-2917.55,0.00026,7]
[395186127,1764526261621,-150.0,0.00026,2]
[395186128,1764526261631,-1341.98116508,0.0002602,2]
[395186129,1764526261640,-1300.0,0.00026082,7]
[395186130,1764526261649,-4000.0,0.0002631,7]
[395186131,1764526261659,-4000.0,0.00026335,7]
[395186132,1764526261668,-1300.0,0.00026439,7]
[395186133,1764526261678,-702.51,0.0002657,2]
[395186134,1764526261687,-702.51,0.0002657,2]
[395186135,1764526261696,-702.51,0.0002657,2]
[395186136,1764526261705,-702.51,0.0002657,2]
[395186137,1764526261714,-702.51,0.0002657,2]
[395186138,1764526261723,-702.51,0.0002657,2]
[395186139,1764526261732,-702.51,0.0002657,2]
[395186140,1764526261741,-702.51,0.0002657,2]
[395186141,1764526261751,-702.51,0.0002657,2]
[395186142,1764526261760,-702.51,0.0002657,2]
[395186143,1764526261769,-702.51,0.0002657,2]
[395186144,1764526261778,-702.51,0.0002657,2]
[395186145,1764526261787,-702.51,0.0002657,2]
[395186146,1764526261796,-1394.65,0.0002657,2]
[395186147,1764526261806,-1400.0,0.00026591,7]
[395186148,1764526261814,-500.0,0.00026598,7]
[395186149,1764526261824,-692.77,0.00026676,2]
[395186150,1764526261833,-153.84,0.0002674,2]
[395186151,1764526261843,-150.0,0.0002674,2]
[395186152,1764526261852,-150.0,0.0002674,2]
[395186153,1764526261861,-150.0,0.0002674,2]
[395186154,1764526261871,-591.6591719,0.00026749,7]
[395186155,1764526261881,-332.60791905,0.0002681,2]
[395186156,1764526261890,-4000.0,0.0002685,7]
[395186157,1764526261899,-600.0,0.00026865,7]
[395186158,1764526261908,-1321.0,0.00026953,2]
[395186159,1764526261918,-1601.872,0.00026953,2]
[395186160,1764526261928,-640.0,0.00026953,2]
[395186161,1764526261937,-1258.0,0.00026953,2]
[395186162,1764526261947,-2718.0,0.00026953,2]
[395186163,1764526261956,-2657.123,0.00026953,2]
[395186164,1764526261966,-4000.0,0.00026983,7]
[395186165,1764526261975,-427.55165138,0.00027,7]
[395186166,1764526261985,-500.0,0.00027,2]
[395186167,1764526261995,-500.0,0.00027019,7]
[395186168,1764526262005,-176.52,0.00027039,7]
[395186169,1764526262015,-500.0,0.00027045,2]
[395186170,1764526262025,-4000.0,0.00027047,7]
[395186171,1764526262038,-4000.0,0.00027124,7]
[395186172,1764526262049,-2464.0,0.00027183,2]
[395186173,1764526262059,-150.0,0.00027369,2]
[395186174,1764526262068,-2924.07471264,0.0002739,7]
[395186175,1764526262077,-151.0,0.00027394,7]
[395186176,1764526262087,-5455.3,0.00027396,2]
[395186177,1764526262097,-764.6613131,0.00027397,2]
[395186178,1764526262106,-764.6613131,0.00027397,2]
[395186179,1764526262116,-764.6613131,0.00027397,2]
[395186180,1764526262126,-764.6613131,0.00027397,2]
[395186181,1764526262135,-764.6613131,0.00027397,2]
[395186182,1764526262145,-764.6613131,0.00027397,2]
[395186183,1764526262154,-764.6613131,0.00027397,2]
[395186184,1764526262163,-764.6613131,0.00027397,2]
[395186185,1764526262172,-764.6613131,0.00027397,2]
[395186186,1764526262181,-764.6613131,0.00027397,2]
[395186187,1764526262190,-764.6613131,0.00027397,2]
[395186188,1764526262198,-764.6613131,0.00027397,2]
[395186189,1764526262207,-764.6613131,0.00027397,2]
[395186190,1764526262216,-764.6613131,0.00027397,2]